bitfinex/quotes_ETHUSD_20230905
["timestamp","ask_amount","ask_price","bid_price","bid_amount"]
[1693913054651,2.1523,1632.9,1632.6,22.34386312]
[1693913055264,0.00733807,1632.8,1632.6,22.34386312]
[1693913056195,2.1523,1632.9,1632.6,22.34386312]
[1693913056996,0.5393827,1632.8,1632.6,22.34386312]
[1693913057296,0.54672077,1632.8,1632.6,22.34386312]
[1693913057466,0.00733807,1632.8,1632.6,22.34386312]
[1693913058197,2.1523,1632.9,1632.6,22.34386312]
[1693913059297,0.00733807,1632.8,1632.6,22.34386312]
[1693913060201,2.1523,1632.9,1632.6,22.34386312]
[1693913060698,6.0936,1632.9,1632.6,22.34386312]
[1693913060898,6.0936,1632.9,1632.6,19.9719894]
[1693913061197,0.00734359,1632.8,1632.6,19.9719894]
[1693913061360,2.08934359,1632.8,1632.6,19.9719894]
[1693913062264,2.08934359,1632.8,1632.6,18.37536]
[1693913062675,2.08934359,1632.8,1632.6,19.971971]
[1693913065611,2.08934359,1632.8,1632.6,18.37536]
[1693913066505,2.08934359,1632.8,1632.5,1.596611]
[1693913066506,1.33,1632.7,1632.5,1.596611]
[1693913066672,1.33,1632.6,1632.4,6.72564]
[1693913066871,1.33,1632.6,1632.5,6.12553]
[1693913066872,2.2619,1632.6,1632.5,6.12553]
[1693913067072,4.670813,1632.6,1632.5,6.12553]
[1693913067267,4.67815402,1632.6,1632.5,6.12553]
[1693913071286,3.59924102,1632.6,1632.5,6.12553]
[1693913072081,4.09675711,1632.6,1632.5,6.12553]
[1693913077715,4.09675711,1632.6,1632.5,7.19006284]
[1693913078021,4.09675711,1632.6,1632.5,6.12553]
[1693913078230,4.09675711,1632.6,1632.5,7.19006168]
[1693913080951,4.09675711,1632.6,1632.5,6.12553]
[1693913084241,4.09675711,1632.6,1632.5,7.19007262]
[1693913084540,4.09675711,1632.6,1632.5,6.12553]
[1693913084840,4.09675711,1632.6,1632.5,7.19007254]
[1693913085041,4.09675711,1632.6,1632.5,6.12553]
[1693913085418,4.09675711,1632.6,1632.5,7.19007273]
[1693913085614,4.09675711,1632.6,1632.5,6.12553]
[1693913085823,4.09675711,1632.6,1632.5,7.19007373]
[1693913086942,4.09675711,1632.6,1632.5,13.31564373]
[1693913087149,0.50485711,1632.6,1632.5,13.31564373]
[1693913087330,0.50485711,1632.6,1632.5,19.44121373]
[1693913087643,0.50485711,1632.6,1632.5,19.44120089]
[1693913096659,0.50485711,1632.6,1632.5,21.50959813]
[1693913097044,0.50485711,1632.6,1632.5,23.10639303]
[1693913097243,0.50485711,1632.6,1632.5,21.50959813]
[1693913097477,0.50485711,1632.6,1632.5,23.10639303]
[1693913100080,0.50485711,1632.6,1632.5,21.03799579]
[1693913100381,0.50485711,1632.6,1632.5,19.44120089]
[1693913107470,0.50485711,1632.6,1632.5,20.08397241]
[1693913107666,0.50485711,1632.6,1632.5,21.04855395]
[1693913107864,0.50485711,1632.6,1632.5,20.40578243]
[1693913108195,0.50485711,1632.6,1632.5,24.84433137]
[1693913114309,0.50485711,1632.6,1632.5,25.48729406]
[1693913114516,0.50485711,1632.6,1632.5,24.84433137]
[1693913114824,0.50485711,1632.6,1632.5,25.48725859]
[1693913115025,0.50485711,1632.6,1632.5,24.84433137]
[1693913115321,0.6313956,1632.6,1632.5,27.91134563]
[1693913115664,1e-08,1632.6,1632.5,28.55372693]
[1693913115921,0.74929858,1632.6,1632.5,30.6825508]
[1693913116299,0.00595228,1632.6,1632.5,30.6825508]
[1693913117307,6.90770144,1633.0,1632.5,30.6825508]
[1693913117604,0.74304738,1632.9,1632.7,0.64262453]
[1693913117809,0.74304738,1632.9,1632.8,18.37332]
[1693913118000,0.74304738,1632.9,1632.8,19.43785089]
[1693913118397,0.74900745,1632.9,1632.8,19.43785089]
[1693913120836,2.92860745,1632.9,1632.8,19.43785089]
[1693913121038,2.92860745,1632.9,1632.8,21.60557792]
[1693913124537,2.92860745,1632.9,1632.8,20.54104703]
[1693913124749,2.92860745,1632.9,1632.8,21.6053087]
[1693913125643,2.92860745,1632.9,1632.8,20.54104703]
[1693913125810,2.92860745,1632.9,1632.8,21.60530823]
[1693913126742,0.74900745,1632.9,1632.8,25.31494702]
[1693913126957,0.74900745,1632.9,1632.8,27.87528087]
[1693913127159,0.00596007,1632.9,1632.8,29.36148021]
[1693913127450,2.2987,1633.2,1632.8,29.36148021]
[1693913127652,2.2987,1633.2,1633.0,24.49476]
[1693913127824,2.2987,1633.2,1633.0,27.56177426]
[1693913128432,0.00574908,1633.1,1633.0,27.56177426]
[1693913128757,0.00574908,1633.1,1633.0,30.22201132]
[1693913129323,2.2987,1633.2,1633.0,30.22201132]
[1693913129625,2.2987,1633.2,1633.1,3.02220113]
[1693913129855,2.2987,1633.2,1633.1,21.39216113]
[1693913130223,2.3044572,1633.2,1633.1,21.39216113]
[1693913130959,0.0057572,1633.2,1633.1,25.52326891]
[1693913131337,2.2466,1633.3,1633.1,25.52326891]
[1693913131528,2.2466,1633.3,1633.2,2.21378098]
[1693913131729,2.2466,1633.3,1633.2,14.45966098]
[1693913131929,2.99179303,1633.3,1633.2,14.45966098]
[1693913132331,2.99904,1633.3,1633.2,14.45966098]
[1693913133347,2.99904,1633.3,1633.2,20.58260098]
[1693913137860,2.99904,1633.3,1633.2,21.64666438]
[1693913141269,2.99904,1633.3,1633.2,23.24274594]
[1693913141464,2.99904,1633.3,1633.2,21.02896496]
[1693913141668,2.99904,1633.3,1633.2,21.02896772]
[1693913145371,2.99904,1633.3,1633.2,21.52862764]
[1693913147077,2.78124793,1633.3,1633.2,21.52862764]
[1693913148855,7.92666777,1633.3,1633.2,21.52862764]
[1693913154085,7.92666777,1633.3,1633.2,24.79026066]
[1693913156416,7.92666777,1633.3,1633.2,22.1701505]
[1693913156595,7.92666777,1633.3,1633.2,21.52862764]
[1693913157618,7.92666777,1633.3,1633.2,15.40568764]
[1693913157829,9.25666777,1633.3,1633.2,1.0640634]
[1693913158724,9.25666777,1633.3,1633.2,7.1870034]
[1693913159724,11.66388755,1633.3,1633.2,7.1870034]
[1693913161693,9.25666777,1633.3,1633.2,7.1870034]
[1693913162236,9.25666777,1633.3,1633.2,7.82852626]
[1693913163043,7.92666777,1633.3,1633.2,20.07440626]
[1693913163203,7.92666777,1633.3,1633.2,21.67049058]
[1693913166640,7.92666777,1633.3,1633.2,21.02896772]
[1693913167918,7.92666777,1633.3,1633.2,13.3099434]
[1693913169438,7.92666777,1633.3,1633.2,13.95146626]
[1693913169606,7.92666777,1633.3,1633.2,13.3099434]
[1693913170438,7.92666777,1633.3,1633.2,13.95146626]
[1693913170606,7.92666777,1633.3,1633.2,13.3099434]
[1693913171029,7.92666777,1633.3,1633.2,13.95146626]
[1693913171527,7.92666777,1633.3,1633.2,13.3099434]
[1693913171733,7.92666777,1633.3,1633.2,13.95146626]
[1693913171938,7.92666777,1633.3,1633.2,16.10514044]
[1693913172149,7.92666777,1633.3,1633.2,13.95146626]
[1693913172718,2.78124793,1633.3,1633.2,13.95146626]
[1693913174552,2.78124793,1633.3,1633.2,13.3099434]
[1693913182169,2.78124793,1633.3,1633.2,1.0640634]
[1693913182347,4.11124793,1633.3,1633.2,1.0640634]
[1693913182541,6.00392972,1633.3,1633.2,1.0640634]
[1693913183773,6.00392972,1633.3,1633.2,7.1870034]
[1693913185380,4.11124793,1633.3,1633.2,7.1870034]
[1693913188375,4.11124793,1633.3,1633.2,7.18705367]
[1693913195812,4.11124793,1633.3,1633.2,13.30999367]
[1693913197014,4.11124793,1633.3,1633.2,12.24588]
[1693913200419,4.11124793,1633.3,1633.2,6.12294]
[1693913201179,4.11124793,1633.3,1633.2,12.24588]
[1693913204821,4.11124793,1633.3,1633.2,6.12294]
[1693913205024,5.39167672,1633.3,1633.2,6.12294]
[1693913219057,4.11124793,1633.3,1633.2,6.12294]
[1693913224356,4.11124793,1633.3,1633.2,7.18706936]
[1693913225163,4.11124793,1633.3,1633.2,6.12294]
[1693913225460,4.11124793,1633.3,1633.2,7.18707096]
[1693913232680,4.11124793,1633.3,1633.2,13.31001096]
[1693913243975,5.39166572,1633.3,1633.2,7.18707096]
[1693913244485,5.39166572,1633.3,1633.2,1.06413096]
[1693913244679,5.39166572,1633.3,1632.9,6.76538286]
[1693913244680,23.75937572,1633.3,1632.9,6.76538286]
[1693913244887,25.49638998,1633.3,1632.8,6.76581286]
[1693913245082,1.33,1632.9,1632.8,6.76581286]
[1693913245380,1.33,1632.9,1632.8,1.70582436]
[1693913245682,1.93058539,1632.9,1632.8,7.83026436]
[1693913245883,4.14958539,1632.9,1632.8,7.1887415]
[1693913246387,4.15657829,1632.9,1632.8,7.1887415]
[1693913247191,4.15657829,1632.9,1632.8,13.3131815]
[1693913247397,4.15657829,1632.9,1632.8,7.1887415]
[1693913249201,4.15657829,1632.9,1632.8,13.3131815]
[1693913249778,4.15657829,1632.9,1632.8,7.1887415]
[1693913250964,4.82478612,1632.9,1632.8,1.0643015]
[1693913251164,10.94885612,1632.9,1632.7,6.12456]
[1693913251371,4.82478612,1632.9,1632.7,6.12456]
[1693913252206,4.82478612,1632.9,1632.7,12.24938]
[1693913255614,1.33,1632.8,1632.7,6.12456]
[1693913255927,1.81247861,1632.8,1632.7,7.18890395]
[1693913256076,4.57617401,1632.8,1632.7,6.12456]
[1693913256414,4.58317453,1632.8,1632.7,6.12456]
[1693913260389,4.10069592,1632.8,1632.7,12.24938]
[1693913261993,4.10069592,1632.8,1632.7,6.12456]
[1693913267058,4.10069592,1632.8,1632.7,6.12456]
[1693913270157,4.10069592,1632.8,1632.7,12.24938]
[1693913270452,4.10069592,1632.8,1632.7,6.12456]
[1693913273758,4.10069592,1632.8,1632.6,12.24983]
[1693913273960,1.33,1632.7,1632.6,12.24983]
[1693913274136,1.93622939,1632.7,1632.6,13.31424461]
[1693913274338,1.94320001,1632.7,1632.6,13.31424461]
[1693913282371,4.90770001,1632.7,1632.6,7.18928461]
[1693913283346,4.24470001,1632.7,1632.6,7.18928461]
[1693913286679,4.24470001,1632.7,1632.6,7.83080747]
[1693913287779,4.24470001,1632.7,1632.6,7.18928461]
[1693913287981,4.24470001,1632.7,1632.6,7.83080747]
[1693913289283,1.94320001,1632.7,1632.6,7.83080747]
[1693913292399,0.61320001,1632.7,1632.6,13.95599747]
[1693913295963,0.61320001,1632.7,1632.6,23.19949003]
[1693913296164,0.61320001,1632.7,1632.6,24.1545346]
[1693913297605,0.61320001,1632.7,1632.6,24.79757514]
[1693913297795,0.61320001,1632.7,1632.6,21.1726563]
[1693913297983,0.61320001,1632.7,1632.6,24.79754012]
[1693913298190,0.61320001,1632.7,1632.6,23.83360332]
[1693913298394,0.61320001,1632.7,1632.6,24.79754012]
[1693913299668,0.61320001,1632.7,1632.6,24.15449958]
[1693913300095,0.61320001,1632.7,1632.6,24.47581185]
[1693913300893,0.61320001,1632.7,1632.6,27.54282611]
[1693913308919,6.1299,1633.2,1632.6,29.67101756]
[1693913309213,6.1299,1633.2,1632.9,12.24814]
[1693913309214,2.2101,1633.1,1632.9,12.24814]
[1693913309384,2.21684141,1633.1,1632.9,12.24814]
[1693913312985,3.54684141,1633.1,1632.9,12.24814]
[1693913313894,5.68961109,1633.1,1632.9,12.24814]
[1693913316220,0.49867144,1633.0,1632.9,12.24814]
[1693913316512,0.49867144,1633.0,1632.9,13.34531669]
[1693913317187,2.64217144,1633.0,1632.9,13.34531669]
[1693913317385,2.64891028,1633.0,1632.9,13.34531669]
[1693913333745,2.64891028,1633.0,1632.9,14.40955665]
[1693913336814,2.64891028,1633.0,1632.9,13.26237996]
[1693913339668,2.64891028,1633.0,1632.9,19.38644996]
[1693913339834,2.64891028,1633.0,1632.9,20.98301817]
[1693913340534,2.64891028,1633.0,1632.9,19.38644996]
[1693913342575,2.64891028,1633.0,1632.9,20.02905031]
[1693913343475,2.64891028,1633.0,1632.9,19.38644996]
[1693913343672,2.64891028,1633.0,1632.9,20.02905031]
[1693913343840,2.64891028,1633.0,1632.9,22.28800222]
[1693913345187,0.50541028,1633.0,1632.9,26.31891701]
[1693913345372,0.50541028,1633.0,1632.9,27.91548522]
[1693913345687,0.50541028,1633.0,1632.9,27.27288487]
[1693913346038,0.50541028,1633.0,1632.9,28.55813394]
[1693913346476,0.50541028,1633.0,1632.9,27.27288487]
[1693913346654,0.50541028,1633.0,1632.9,28.55813394]
[1693913347374,0.50541028,1633.0,1632.9,27.27288487]
[1693913359179,1e-08,1633.0,1632.9,36.65601774]
[1693913359379,0.5098378,1633.0,1632.9,40.49896012]
[1693913359783,0.00645861,1633.0,1632.9,40.49896012]
[1693913360314,2.6245,1633.4,1632.9,40.49896012]
[1693913360513,2.6245,1633.4,1633.1,1.60566278]
[1693913360710,0.49885861,1633.3,1633.2,18.36882]
[1693913360998,0.49885861,1633.3,1633.2,19.43305996]
[1693913361319,0.50483116,1633.3,1633.2,21.02962817]
[1693913361514,0.50483116,1633.3,1633.2,23.50351892]
[1693913363802,0.50483116,1633.3,1633.2,26.57053318]
[1693913364531,0.00597255,1633.3,1633.2,26.57053318]
[1693913364903,0.50483116,1633.3,1633.2,26.57053318]
[1693913368746,0.00597255,1633.3,1633.2,26.57053318]
[1693913369145,0.50289365,1633.3,1633.2,26.57053318]
[1693913374185,0.50289365,1633.3,1633.2,27.21279829]
[1693913374335,0.50289365,1633.3,1633.2,27.53393085]
[1693913374825,0.00597255,1633.3,1633.2,27.53393085]
[1693913375422,2.2261,1633.5,1633.2,27.53393085]
[1693913375787,2.2261,1633.5,1633.4,18.36657]
[1693913375977,2.2261,1633.5,1633.4,22.49782422]
[1693913376259,2.6065,1633.6,1633.4,22.49782422]
[1693913376260,2.14172202,1633.9,1633.4,24.09361236]
[1693913376425,5.26e-06,1633.5,1633.4,26.73668789]
[1693913376630,2.14172202,1633.9,1633.6,0.00199474]
[1693913376858,2.4065,1634.0,1633.7,25.12488571]
[1693913377058,2.4065,1634.0,1633.9,18.36096]
[1693913377557,2.41117358,1634.0,1633.9,18.36096]
[1693913378129,2.41117358,1634.0,1633.9,19.42452709]
[1693913379566,2.41117358,1634.0,1633.9,21.0198842]
[1693913379733,2.41117358,1634.0,1633.9,19.42452709]
[1693913379934,2.41117358,1634.0,1633.9,21.83700085]
[1693913380134,2.41117358,1634.0,1633.9,23.43235927]
[1693913385274,2.41117358,1634.0,1633.9,24.07296498]
[1693913385469,2.41117358,1634.0,1633.9,27.13997924]
[1693913385965,0.00467358,1634.0,1633.9,27.13997924]
[1693913387073,0.47958178,1634.0,1633.9,27.13997924]
[1693913389045,0.47958178,1634.0,1633.9,27.61971173]
[1693913390244,2.4918,1634.2,1634.1,2.26840705]
[1693913390245,0.101,1634.2,1634.1,2.26840705]
[1693913390574,0.101,1634.3,1634.1,42.1760157]
[1693913390774,0.101,1634.3,1634.2,9.44665039]
[1693913390974,0.101,1634.3,1634.2,30.80425039]
[1693913391278,0.101,1634.3,1634.2,29.21066355]
[1693913391474,0.101,1634.3,1634.2,30.49959883]
[1693913391858,0.101,1634.3,1634.2,32.09236476]
[1693913393265,0.101,1634.3,1634.2,33.3655163]
[1693913394093,0.101,1634.4,1634.2,32.09236476]
[1693913394298,0.101,1634.4,1634.3,21.97022833]
[1693913394603,0.101,1634.4,1634.3,30.84996389]
[1693913395111,0.101,1634.5,1634.3,30.84996389]
[1693913395309,0.101,1634.5,1634.4,24.71759263]
[1693913396390,0.101,1634.5,1634.4,24.08128977]
[1693913396689,3.59835208,1634.6,1634.4,24.08128977]
[1693913397003,3.59835208,1634.6,1634.4,24.18433543]
[1693913398106,2.1103,1634.6,1634.4,24.18433543]
[1693913398476,0.101,1634.8,1634.4,24.18433543]
[1693913398676,2.3648,1634.7,1634.4,24.18433543]
[1693913398910,0.57596678,1634.6,1634.4,24.18433543]
[1693913399076,0.57596678,1634.6,1634.5,1.04419928]
[1693913399404,2.30288342,1634.7,1634.5,22.46542354]
[1693913399609,2.30288342,1634.7,1634.6,3.06701426]
[1693913399817,2.30288342,1634.7,1634.6,21.42011426]
[1693913413015,2.30288342,1634.7,1634.6,21.90551334]
[1693913413244,2.30288342,1634.7,1634.6,24.3179871]
[1693913416632,1.16886324,1634.7,1634.6,24.3179871]
[1693913416947,1.16886324,1634.7,1634.6,18.83849908]
[1693913419223,1.16886324,1634.7,1634.6,19.90162786]
[1693913420320,1.16886324,1634.7,1634.6,21.49632419]
[1693913422435,1.16886324,1634.7,1634.6,22.13262705]
[1693913423747,1.16886324,1634.7,1634.6,22.13262705]
[1693913427167,1.16886324,1634.7,1634.6,23.08746987]
[1693913428267,1.16886324,1634.7,1634.6,22.45116701]
[1693913430344,1.16886324,1634.7,1634.6,23.72429077]
[1693913430545,2.88141956,1634.7,1634.6,2.65782511]
[1693913430746,2.88141956,1634.7,1634.6,7.18082878]
[1693913430957,3.49785041,1634.7,1634.6,7.18082878]
[1693913432292,3.49785041,1634.7,1634.6,6.1177]
[1693913432484,3.49785041,1634.7,1634.6,7.18096797]
[1693913433294,3.49785041,1634.7,1634.6,6.1177]
[1693913435291,3.49785041,1634.7,1634.6,1.06327493]
[1693913435876,3.49785041,1634.7,1634.5,12.23581]
[1693913436074,0.34978504,1634.6,1634.5,12.23581]
[1693913436276,0.34978504,1634.6,1634.5,13.29910792]
[1693913436474,0.34978504,1634.6,1634.5,7.18118792]
[1693913436672,0.34978504,1634.6,1634.5,7.18136792]
[1693913436881,0.35354777,1634.6,1634.5,7.18136792]
[1693913437789,0.35354777,1634.6,1634.5,6.11807]
[1693913439399,0.35354777,1634.6,1634.5,12.23614]
[1693913439400,1.68354777,1634.6,1634.5,12.23614]
[1693913439616,1.33376273,1634.6,1634.5,13.29942321]
[1693913439769,1.33376273,1634.6,1634.5,19.41748569]
[1693913439970,1.33376273,1634.6,1634.5,21.01218202]
[1693913440997,1.33376273,1634.6,1634.5,19.41748569]
[1693913441507,1.9262391,1634.6,1634.5,19.41748569]
[1693913442290,1.9262391,1634.6,1634.5,18.35421]
[1693913458834,1.9262391,1634.6,1634.5,12.23614]
[1693913462153,0.5962391,1634.6,1634.5,20.23814043]
[1693913475234,0.5962391,1634.6,1634.5,18.35421]
[1693913475431,1.9262391,1634.6,1634.5,12.23614]
[1693913480280,0.5962391,1634.6,1634.5,12.23614]
[1693913485988,0.5962391,1634.6,1634.5,18.35421]
[1693913496863,0.5962391,1634.6,1634.5,12.23614]
[1693913497061,2.33226301,1634.6,1634.5,6.11807]
[1693913497263,3.28727348,1634.6,1634.5,6.11807]
[1693913498479,3.28727348,1634.6,1634.5,12.23614]
[1693913498803,2.33226301,1634.6,1634.5,12.23614]
[1693913501178,2.33226301,1634.6,1634.5,6.11807]
[1693913501993,2.33226301,1634.6,1634.4,12.23642]
[1693913502193,1.33,1634.5,1634.4,12.23642]
[1693913502699,2.28840143,1634.5,1634.4,6.11814]
[1693913502867,2.29214506,1634.5,1634.4,6.11814]
[1693913505966,2.29214506,1634.5,1634.1,0.63964318]
[1693913506171,1.33,1634.2,1634.1,6.11947]
[1693913506738,1.33,1634.2,1634.1,12.23904]
[1693913506935,1.33374926,1634.2,1634.1,12.23904]
[1693913507304,1.66209419,1634.2,1634.1,12.23904]
[1693913508427,1.66209419,1634.2,1634.1,6.11947]
[1693913508808,1.66209419,1634.2,1634.1,12.23904]
[1693913510409,1.33374926,1634.2,1634.1,12.23904]
[1693913511844,1.33374926,1634.2,1634.1,6.11947]
[1693913512209,1.33374926,1634.2,1634.1,12.23904]
[1693913516549,1.85145234,1634.2,1634.1,12.23904]
[1693913525673,1.85145234,1634.2,1634.1,6.11947]
[1693913525976,2.23156757,1634.2,1634.1,6.11947]
[1693913526177,2.23156757,1634.2,1634.1,12.23904]
[1693913528167,2.23156757,1634.2,1634.1,6.11947]
[1693913530634,1.85145234,1634.2,1634.1,6.11947]
[1693913539179,1.85145234,1634.2,1634.0,6.61078786]
[1693913539359,10.00145234,1634.2,1634.0,12.73050786]
[1693913540365,3.88225234,1634.2,1634.0,12.73050786]
[1693913550397,3.88225234,1634.2,1634.1,1.06347095]
[1693913550600,3.16155957,1634.2,1634.1,7.18304095]
[1693913550778,0.52145234,1634.2,1634.1,19.42218095]
[1693913551093,0.52145234,1634.2,1634.1,21.01740817]
[1693913551258,0.52145234,1634.2,1634.1,21.65705135]
[1693913552370,0.52145234,1634.2,1634.1,20.06182413]
[1693913555469,0.52145234,1634.2,1634.1,19.42218095]
[1693913555670,0.52145234,1634.2,1634.1,13.30261095]
[1693913562413,0.52145234,1634.2,1634.1,7.18304095]
[1693913563131,1.22967757,1634.2,1634.1,1.06347095]
[1693913563833,1.22967757,1634.2,1634.1,7.18304095]
[1693913564033,0.52145234,1634.2,1634.1,7.18304095]
[1693913575568,0.52145234,1634.2,1634.1,20.06182413]
[1693913575863,0.52145234,1634.2,1634.1,21.65705135]
[1693913582180,0.52145234,1634.2,1634.1,25.03926525]
[1693913586453,0.51773458,1634.2,1634.1,29.68754619]
[1693913586652,0.51773458,1634.2,1634.1,31.81427036]
[1693913586898,3.1,1634.3,1634.1,36.85632797]
[1693913587158,3.1,1634.3,1634.2,27.17259097]
[1693913588002,3.10345229,1634.3,1634.2,27.17259097]
[1693913589101,3.10345229,1634.3,1634.2,27.81409463]
[1693913589775,3.10345229,1634.3,1634.2,27.17259097]
[1693913589980,3.10345229,1634.3,1634.2,28.82681728]
[1693913590183,3.10345229,1634.3,1634.2,29.46820083]
[1693913594198,3.59000525,1634.3,1634.2,26.37892229]
[1693913600668,3.59000525,1634.3,1634.2,26.5604627]
[1693913601517,3.59000525,1634.3,1634.2,29.5604627]
[1693913614347,3.59000525,1634.3,1634.2,30.52301707]
[1693913617345,3.59000525,1634.3,1634.2,29.88163352]
[1693913622297,3.59000525,1634.3,1634.2,31.15475728]
[1693913625317,3.59000525,1634.3,1634.2,30.19220291]
[1693913627703,3.59000525,1634.3,1634.2,28.2282516]
[1693913627892,3.59000525,1634.3,1634.2,27.28768495]
[1693913628099,3.59000525,1634.3,1634.2,25.16123734]
[1693913630629,3.59000525,1634.3,1634.2,26.4343611]
[1693913645479,3.59000525,1634.3,1634.2,23.77566293]
[1693913645685,3.59000525,1634.3,1634.2,26.43385359]
[1693913647591,3.59000525,1634.3,1634.2,24.97918942]
[1693913650060,3.59000525,1634.3,1634.2,22.62162326]
[1693913650465,3.59000525,1634.3,1634.2,21.02670886]
[1693913650682,3.59000525,1634.3,1634.2,20.0633101]
[1693913655004,4.92000525,1634.3,1634.2,20.0633101]
[1693913655506,5.65076578,1634.3,1634.2,20.0633101]
[1693913659719,4.32076578,1634.3,1634.2,20.0633101]
[1693913661103,3.59000525,1634.3,1634.2,20.0633101]
[1693913663465,3.59000525,1634.3,1634.2,21.6582245]
[1693913668316,4.92000525,1634.3,1634.2,21.01579066]
[1693913668518,3.59000525,1634.3,1634.2,21.01579066]
[1693913668716,3.59000525,1634.3,1634.2,21.6582245]
[1693913669080,3.59000525,1634.3,1634.2,24.5801018]
[1693913669279,3.59000525,1634.3,1634.2,28.61051482]
[1693913669502,3.10345229,1634.3,1634.2,30.0946961]
[1693913669896,3.58954564,1634.3,1634.2,30.0946961]
[1693913670907,3.58954564,1634.3,1634.2,30.0946415]
[1693913671296,3.10345229,1634.3,1634.2,30.0946415]
[1693913671520,3.10345229,1634.3,1634.2,31.36776526]
[1693913672021,3.1,1634.3,1634.2,31.36776526]
[1693913673620,3.1,1634.3,1634.2,30.4043665]
[1693913673824,3.1,1634.3,1634.2,31.36764719]
[1693913674799,3.58590715,1634.3,1634.2,31.36764719]
[1693913676093,3.58922204,1634.3,1634.2,31.36764719]
[1693913684243,3.58922204,1634.3,1634.2,30.09452343]
[1693913684643,3.58922204,1634.3,1634.2,27.96790831]
[1693913685942,3.58922204,1634.3,1634.2,29.24103207]
[1693913687912,3.58922204,1634.3,1634.2,27.96790831]
[1693913694048,3.58922204,1634.3,1634.2,15.85981675]
[1693913694249,3.58922204,1634.3,1634.2,10.38279731]
[1693913694450,3.58922204,1634.3,1634.2,7.82463498]
[1693913698384,3.58922204,1634.3,1634.2,13.94383498]
[1693913700464,3.58922204,1634.3,1634.2,7.82463498]
[1693913700683,4.16271424,1634.3,1634.2,7.82463498]
[1693913702106,3.58922204,1634.3,1634.2,21.02631567]
[1693913702314,3.58922204,1634.3,1634.2,22.62118127]
[1693913702603,3.58922204,1634.3,1634.2,21.97901675]
[1693913716772,3.58922204,1634.3,1634.2,26.31915477]
[1693913717375,3.58922204,1634.3,1634.2,28.68820144]
[1693913717610,2.95131497,1634.3,1634.2,33.75938307]
[1693913717811,2.95131497,1634.3,1634.2,35.88599819]
[1693913718008,2.46540782,1634.3,1634.2,35.88599819]
[1693913725153,2.46540782,1634.3,1634.2,34.55599819]
[1693913725297,2.91979065,1634.3,1634.2,34.23415796]
[1693913725654,2.91979065,1634.3,1634.2,35.19697149]
[1693913727246,2.91979065,1634.3,1634.2,32.12995723]
[1693913727415,2.91979065,1634.3,1634.2,26.4470765]
[1693913729559,0.45769772,1634.3,1634.2,21.65769337]
[1693913729757,1.78769772,1634.3,1634.2,15.53849337]
[1693913730049,1.78769772,1634.3,1634.2,20.06281173]
[1693913730358,0.87734749,1634.3,1634.2,21.65769337]
[1693913731763,0.87734749,1634.3,1634.2,15.53849337]
[1693913731958,0.87734749,1634.3,1634.2,13.94361173]
[1693913732320,1.09629239,1634.3,1634.2,13.94361173]
[1693913732751,1.09629239,1634.3,1634.2,13.30165442]
[1693913737469,0.67664262,1634.3,1634.2,13.94361173]
[1693913739467,0.67664262,1634.3,1634.2,13.30165442]
[1693913740571,3.17664262,1634.3,1634.2,13.30165442]
[1693913752691,3.17664262,1634.3,1634.2,7.18245442]
[1693913753416,4.50664262,1634.3,1634.2,1.06325442]
[1693913753619,11.51913688,1634.3,1634.0,12.88154731]
[1693913753912,11.51913688,1634.3,1634.1,1.06341482]
[1693913753913,1.33,1634.2,1634.1,1.06341482]
[1693913754114,1.33,1634.2,1634.1,7.18298482]
[1693913754432,2.00267138,1634.2,1634.1,7.18298482]
[1693913754585,3.35621443,1634.2,1634.1,7.18298482]
[1693913755212,3.35621443,1634.2,1634.1,6.11957]
[1693913755423,3.35621443,1634.2,1634.0,12.23954]
[1693913755624,17.56831443,1634.2,1633.9,2.10283541]
[1693913755825,13.92071443,1634.2,1633.9,12.24062]
[1693913755982,1.75683144,1634.1,1633.9,6.1203]
[1693913756183,1.75683144,1634.1,1633.9,12.24062]
[1693913756399,0.67247645,1634.0,1633.9,12.24062]
[1693913756595,0.67247645,1634.0,1633.9,13.30411586]
[1693913756799,1.11277724,1634.0,1633.9,13.30411586]
[1693913759737,0.67247645,1634.0,1633.9,13.30411586]
[1693913764459,2.00247645,1634.0,1633.9,6.1203]
[1693913764635,2.00247645,1634.0,1633.9,13.30416567]
[1693913765159,2.00247645,1634.0,1633.9,7.18384567]
[1693913766635,2.00247645,1634.0,1633.9,6.1203]
[1693913766835,2.4000941,1634.0,1633.9,7.18386624]
[1693913767025,2.40756515,1634.0,1633.9,7.18386624]
[1693913787187,1.07756515,1634.0,1633.9,7.18386624]
[1693913797276,0.6799475,1634.0,1633.9,7.18386624]
[1693913798704,0.6799475,1634.0,1633.9,7.82582355]
[1693913810518,0.6799475,1634.0,1633.9,7.82584355]
[1693913857089,0.68741855,1634.0,1633.9,7.82584355]
[1693913885824,0.68741855,1634.0,1633.9,7.18388624]
[1693913886024,1.69829041,1634.0,1633.9,7.18388624]
[1693913887173,0.68741855,1634.0,1633.9,21.67095066]
[1693913887454,0.68741855,1634.0,1633.9,25.37003303]
[1693913888258,0.68741855,1634.0,1633.9,26.33397189]
[1693913888770,0.67929757,1634.0,1633.9,26.33397189]
[1693913892181,0.67929757,1634.0,1633.9,25.050361]
[1693913892541,0.67929757,1634.0,1633.9,28.66900481]
[1693913893786,0.0149421,1634.0,1633.9,28.66900481]
[1693913899194,0.0149421,1634.0,1633.9,29.31105866]
[1693913899393,0.0149421,1634.0,1633.9,28.3471198]
[1693913900363,0.0149421,1634.0,1633.9,19.15978554]
[1693913900697,0.63943578,1634.0,1633.9,19.15978554]
[1693913901200,0.63943578,1634.0,1633.9,16.01967579]
[1693913901406,0.63943578,1634.0,1633.9,14.42479415]
[1693913902284,0.63943578,1634.0,1633.9,13.7827403]
[1693913919423,0.63943578,1634.0,1633.9,19.9030603]
[1693913919631,0.63943578,1634.0,1633.9,20.54511415]
[1693913919831,0.63943578,1634.0,1633.9,24.90294109]
[1693913939205,0.63943578,1634.0,1633.9,25.86687995]
[1693913939495,0.63943578,1634.0,1633.9,24.90294109]
[1693913940259,0.63943578,1634.0,1633.9,25.86687995]
[1693913941001,0.63943578,1634.0,1633.9,25.2248261]
[1693913947068,0.64690683,1634.0,1633.9,25.2248261]
[1693913951607,0.64690683,1634.0,1633.9,28.29184036]
[1693913964210,0.64690683,1634.0,1633.9,29.57545125]
[1693913964380,0.64690683,1634.0,1633.9,28.29184036]
[1693913965224,0.64690683,1634.0,1633.9,29.57545125]
[1693913970239,0.64690683,1634.0,1633.9,29.57545125]
[1693913986089,0.64690683,1634.0,1633.9,28.61151239]
[1693913994479,0.64690683,1634.0,1633.9,28.93335262]
[1693913994978,0.02241315,1634.0,1633.9,31.05996774]
[1693913995407,0.61939676,1634.0,1633.9,31.05996774]
[1693913995722,0.02241315,1634.0,1633.9,31.05996774]
[1693913996221,0.02241315,1634.0,1633.9,30.21894781]
[1693913996421,0.02241315,1634.0,1633.9,32.34556293]